bitfinex/quotes_ETHUSD_20260304
["timestamp","ask_amount","ask_price","bid_price","bid_amount"]
[1772653522263,3.91846985,2181.9,2181.1,1.232]
[1772653522468,3.91846985,2181.7,2181.1,1.232]
[1772653524277,3.91846985,2181.7,2181.2,1.14615807]
[1772653524581,5.06436731,2181.7,2181.2,1.14615807]
[1772653524886,5.06438198,2181.7,2181.1,2.37817751]
[1772653525271,0.4273652,2181.6,2181.1,2.37820901]
[1772653525587,5.06438198,2181.7,2181.1,2.37820901]
[1772653526587,1.14576498,2182.0,2181.2,3.97780347]
[1772653526893,0.42730081,2181.9,2181.2,3.97780347]
[1772653527189,3.81593101,2181.9,2181.3,0.001]
[1772653527561,3.81793101,2181.9,2181.3,0.001]
[1772653528361,4.96377039,2181.9,2181.3,0.001]
[1772653528557,4.2432622,2181.8,2181.3,0.001]
[1772653528801,3.81593101,2181.6,2181.3,0.001]
[1772653529571,4.96377039,2181.9,2181.3,0.001]
[1772653529765,0.427327,2181.8,2181.3,0.001]
[1772653529973,4.96377039,2181.9,2181.3,0.001]
[1772653530269,0.42731232,2181.8,2181.3,0.001]
[1772653530586,3.81793101,2181.9,2181.3,0.001]
[1772653530771,0.002,2181.9,2181.3,0.001]
[1772653531457,0.002,2181.9,2181.3,3.97880347]
[1772653532597,0.002,2181.9,2181.4,1.14605299]
[1772653533059,0.002,2181.9,2181.4,8.93385646]
[1772653535265,0.002,2182.1,2181.5,3.97780347]
[1772653535478,0.002,2182.1,2181.7,3.97780347]
[1772653535984,0.002,2182.1,2181.6,1.236]
[1772653536566,3.81793101,2182.1,2181.6,1.236]
[1772653537285,4.96366443,2182.1,2181.6,2.38194393]
[1772653537700,3.81593101,2182.0,2181.6,1.236]
[1772653537905,3.81593101,2182.0,2181.6,1.14594496]
[1772653538070,3.81593101,2182.0,2181.6,2.38294496]
[1772653538688,3.81593101,2182.0,2181.4,4.58408985]
[1772653538879,3.81593101,2182.0,2181.5,1.237]
[1772653539394,4.96167877,2182.0,2181.5,2.38295552]
[1772653539567,0.002,2181.9,2181.5,1.237]
[1772653539967,3.81793101,2181.9,2181.5,1.238]
[1772653540402,0.002,2181.9,2181.5,1.238]
[1772653541501,0.002,2181.9,2181.5,2.38394908]
[1772653542988,0.002,2181.9,2181.5,1.238]
[1772653543184,0.002,2181.9,2181.1,0.001]
[1772653543185,3.81593101,2181.7,2181.1,1.24]
[1772653543383,4.96193146,2181.5,2181.1,1.24]
[1772653543770,3.81593101,2181.4,2181.1,0.001]
[1772653543987,3.81593101,2181.2,2181.1,0.001]
[1772653544499,3.81593101,2181.5,2181.1,1.14719819]
[1772653544698,3.81593101,2181.7,2181.1,0.001]
[1772653544870,3.16652046,2181.6,2181.1,0.001]
[1772653545070,4.24389193,2181.5,2181.1,0.001]
[1772653545296,1.14605299,2181.4,2181.1,0.001]
[1772653545693,3.81593101,2181.3,2181.1,0.001]
[1772653546089,3.81593101,2181.3,2180.9,1.241]
[1772653546287,1.1460049,2181.5,2180.9,1.241]
[1772653546478,0.4278619,2181.4,2180.9,1.241]
[1772653546677,4.96193591,2181.5,2180.9,1.241]
[1772653546878,4.24377918,2181.4,2180.9,1.241]
[1772653547107,3.81593101,2181.4,2180.9,1.241]
[1772653547507,4.962023,2181.4,2180.9,1.1472991]
[1772653547696,3.81593101,2181.4,2181.0,1.241]
[1772653547873,4.96199127,2181.4,2181.0,1.241]
[1772653549617,3.95342555,2181.3,2180.5,0.03357666]
[1772653549906,3.95342555,2181.5,2180.6,5.18914005]
[1772653550074,2.73760175,2181.4,2180.6,5.18914005]
[1772653550278,3.95342555,2181.5,2180.7,3.94714005]
[1772653550704,1.14584288,2181.8,2180.7,3.94714005]
[1772653550705,3.95342555,2181.7,2180.7,3.94714005]
[1772653552008,1.14594792,2181.6,2180.8,5.09350835]
[1772653552191,5.09935816,2181.7,2180.8,5.09350835]
[1772653552789,5.09935816,2181.7,2180.9,0.001]
[1772653552993,0.002,2181.5,2180.9,3.94814005]
[1772653553190,0.002,2181.9,2181.0,3.94714005]
[1772653553402,0.002,2181.9,2181.2,3.94714005]
[1772653553600,0.002,2181.7,2181.2,3.94714005]
[1772653554022,0.002,2181.7,2181.3,5.09324558]
[1772653554210,0.002,2181.7,2181.4,1.243]
[1772653554513,0.002,2181.7,2181.5,1.243]
[1772653557392,0.002,2181.9,2181.5,2.38899946]
[1772653558787,0.002,2181.9,2181.6,3.94714005]
[1772653559887,0.002,2181.9,2181.6,3.81]
[1772653560294,0.002,2181.9,2181.7,1.1458954]
[1772653560490,0.002,2182.1,2181.7,5.09303545]
[1772653562016,0.002,2182.1,2181.8,1.245]
[1772653562388,0.002,2182.1,2181.9,1.14579036]
[1772653562593,0.002,2182.3,2181.9,5.09293041]
[1772653562791,0.002,2182.4,2182.0,3.94714005]
[1772653563196,0.002,2182.4,2181.9,1.14579036]
[1772653563499,1.14753849,2182.4,2182.0,1.246]
[1772653563711,3.95342555,2182.3,2182.1,1.246]
[1772653563907,3.95342555,2182.3,2182.2,1.246]
[1772653564227,3.95342555,2182.3,2181.4,1.14602713]
[1772653564523,3.95342555,2181.9,2181.5,1.247]
[1772653564923,3.95342555,2181.9,2180.9,0.001]
[1772653565132,3.95342555,2181.7,2181.0,1.247]
[1772653565502,3.95342555,2181.7,2180.9,0.001]
[1772653565700,3.95342555,2181.7,2181.0,1.247]
[1772653566004,3.95342555,2181.7,2181.2,0.001]
[1772653566820,5.09936945,2181.7,2181.2,0.001]
[1772653567014,3.95342555,2181.6,2181.3,1.248]
[1772653568022,3.95342555,2181.6,2181.1,1.248]
[1772653568629,3.95342555,2181.4,2181.2,0.753]
[1772653568795,3.95342555,2181.4,2181.2,1.249]
[1772653569002,3.95342555,2181.4,2181.0,0.001]
[1772653569304,3.95342555,2181.4,2180.9,1.25]
[1772653570031,3.95342555,2181.2,2180.9,0.001]
[1772653570718,3.95342555,2181.0,2180.9,0.001]
[1772653572914,5.09968873,2181.0,2180.9,0.001]
[1772653573626,1.14617787,2181.2,2180.9,0.001]
[1772653573828,3.95342555,2181.3,2180.9,0.001]
[1772653574004,5.09953962,2181.3,2180.9,0.001]
[1772653574204,5.09953704,2181.3,2180.9,0.001]
[1772653576209,5.09941641,2181.6,2180.9,0.001]
[1772653576834,3.95342555,2181.6,2180.9,3.94814005]
[1772653577224,3.95342555,2181.6,2181.0,1.14626318]
[1772653578006,5.09937551,2181.6,2180.9,1.14727322]
[1772653578207,3.95342555,2181.5,2180.9,0.001]
[1772653578407,3.95342555,2181.5,2180.7,1.251]
[1772653578636,4.05866736,2181.3,2180.7,0.001]
[1772653578806,4.05866736,2181.3,2180.6,0.001]
[1772653578807,4.05866736,2181.1,2180.3,0.001]
[1772653579133,4.05866736,2181.1,2178.9,3.81]
[1772653579134,4.05866736,2180.7,2180.0,1e-08]
[1772653579305,4.05866736,2180.5,2180.0,1e-08]
[1772653579706,4.05866736,2180.3,2180.0,1e-08]
[1772653580605,4.05866736,2180.3,2179.3,1.228]
[1772653580806,4.05866736,2180.1,2179.4,0.002]
[1772653581123,4.05866736,2179.9,2179.4,0.002]
[1772653581708,1.14678899,2180.0,2179.4,0.002]
[1772653582707,1.14660755,2180.4,2179.4,3.94787582]
[1772653583044,1.14660755,2180.4,2179.4,3.94587582]
[1772653583340,4.05866736,2180.4,2179.5,1.14705207]
[1772653583545,4.58620012,2180.5,2179.6,3.94587582]
[1772653583546,1.14652602,2180.5,2179.6,3.94587582]
[1772653583705,4.05866736,2180.5,2179.6,3.94587582]
[1772653584247,4.05866736,2180.5,2179.7,0.002]
[1772653586034,4.05866736,2180.3,2179.7,0.002]
[1772653586547,1.14652632,2180.5,2179.7,3.92624396]
[1772653587043,4.02397885,2180.4,2179.6,1.14378283]
[1772653587237,4.02397885,2180.4,2179.7,1.235]
[1772653587622,4.02397885,2180.4,2178.9,3.92624396]
[1772653587823,4.02397885,2180.2,2179.2,1.14720998]
[1772653588442,4.02397885,2180.2,2179.2,5.07345394]
[1772653588639,4.02397885,2180.2,2179.3,3.92624396]
[1772653589078,4.02397885,2180.2,2179.4,1.237]
[1772653589959,5.17069532,2180.2,2179.5,1.238]
[1772653590335,4.02397885,2180.7,2179.5,5.16424396]
[1772653590852,4.02397885,2180.7,2179.6,0.001]
[1772653592219,4.02397885,2180.7,2179.6,5.0742434]
[1772653592220,5.17045229,2180.6,2179.6,5.0742434]
[1772653592423,4.02397885,2180.6,2179.7,3.92624396]
[1772653592825,1.14645851,2180.7,2179.7,3.92624396]
[1772653593027,5.17043736,2180.7,2179.7,3.92624396]
[1772653593428,4.02397885,2180.6,2179.7,3.92624396]
[1772653593865,4.02397885,2180.6,2179.8,1.242]
[1772653594042,4.02397885,2180.6,2179.6,2.38999944]
[1772653594240,1.14652602,2180.5,2179.6,6.3162434]
[1772653594864,5.17050487,2180.5,2179.6,6.3162434]
[1772653595040,1.14648492,2180.6,2179.7,3.92624396]
[1772653596361,4.02397885,2180.6,2179.8,1.14689421]
[1772653596864,4.02397885,2180.6,2179.8,1.244]
[1772653597172,4.02397885,2180.6,2179.6,0.001]
[1772653597475,4.02397885,2180.4,2179.7,1.244]
[1772653598065,4.02397885,2180.4,2179.6,1.246]
[1772653598440,4.02397885,2180.2,2179.6,0.001]
[1772653598640,4.02397885,2180.0,2179.4,0.001]
[1772653599964,5.17061004,2180.3,2179.4,1.14805777]
[1772653600269,4.45068522,2180.2,2179.4,1.14805777]
[1772653600465,1.14673638,2180.1,2179.4,1.14805777]
[1772653601369,5.17071523,2180.1,2179.4,0.001]
[1772653601542,4.02397885,2180.0,2179.4,0.001]
[1772653603072,4.02397885,2179.8,2179.4,0.001]
[1772653603470,1.14684159,2179.9,2179.6,0.001]
[1772653604541,5.17082044,2179.9,2179.6,0.001]
[1772653604758,5.17066264,2180.2,2179.6,0.001]
[1772653604962,5.17066857,2180.2,2179.6,0.001]
[1772653605871,1.14661491,2180.4,2179.7,5.17424396]
[1772653606173,5.17253763,2180.5,2179.7,5.17424396]
[1772653606345,0.002,2180.5,2179.8,3.92624396]
[1772653606744,0.002,2181.0,2179.8,3.92624396]
[1772653607049,0.002,2181.0,2180.2,3.92624396]
[1772653607268,0.002,2181.0,2180.4,3.92624396]
[1772653608643,0.002,2181.0,2180.1,6.10240211]
[1772653608872,0.002,2181.0,2179.9,1.14684159]
[1772653608873,5.02138316,2180.9,2179.9,1.14684159]
[1772653609068,5.02138316,2180.9,2179.8,5.04196802]
[1772653609069,7.03999172,2180.8,2179.8,5.04196802]
[1772653609369,0.42771524,2180.7,2180.0,1.248]
[1772653609573,3.87506742,2180.7,2180.0,1.248]
[1772653610553,3.87506742,2180.7,2179.7,1.14693072]
[1772653610764,7.03950129,2180.6,2179.8,1.248]
[1772653610961,3.87506742,2180.6,2179.8,1.248]
[1772653611473,3.87506742,2180.4,2179.6,0.001]
[1772653611956,1.14652602,2180.5,2179.6,0.001]
[1772653611957,3.87506742,2180.2,2179.6,0.001]
[1772653612274,4.30288137,2180.1,2179.6,0.001]
[1772653612575,3.87506742,2180.1,2179.6,0.001]
[1772653613285,4.58645417,2180.4,2179.6,0.001]
[1772653613449,3.16581688,2180.3,2179.6,0.001]
[1772653613777,4.58645417,2180.4,2179.6,3.87545291]
[1772653613972,4.30284616,2180.3,2179.6,0.001]
[1772653614176,4.58645417,2180.4,2179.6,0.001]
[1772653614379,0.42778029,2180.3,2179.6,0.001]
[1772653614555,4.58645417,2180.4,2179.6,0.001]
[1772653614755,0.42777441,2180.3,2179.6,0.001]
[1772653614951,8.46152159,2180.4,2179.6,0.001]
[1772653615183,7.0405623,2180.3,2179.6,0.001]
[1772653615481,1.14668379,2180.2,2179.6,0.001]
[1772653615676,1.14668379,2180.2,2179.8,0.001]
[1772653617583,5.02175121,2180.2,2179.8,0.001]
[1772653618083,3.87506742,2180.1,2179.8,0.001]
[1772653618448,1.14668379,2180.2,2179.8,0.001]
[1772653618981,5.02175121,2180.2,2179.8,0.001]
[1772653620353,3.87506742,2180.2,2179.8,0.001]
[1772653620560,1.14661232,2180.4,2179.8,0.001]
[1772653620857,3.87506742,2180.4,2179.8,0.001]
[1772653622490,3.87506742,2180.2,2179.8,0.001]
[1772653622854,3.87506742,2180.2,2179.6,0.001]
[1772653623056,3.87506742,2180.0,2179.6,0.001]
[1772653623794,3.87506742,2179.8,2179.6,0.001]
[1772653624159,3.87506742,2179.6,2179.1,1e-08]
[1772653624689,1.14705207,2179.5,2179.1,1e-08]
[1772653624891,5.02211949,2179.5,2179.1,1e-08]
[1772653626291,5.02211949,2179.5,2178.6,4.59008609]
[1772653626292,3.87506742,2179.4,2178.6,1.248]
[1772653626468,3.87506742,2179.8,2178.7,3.87445291]
[1772653626791,5.47073424,2180.8,2178.7,3.87445291]
[1772653626792,2.18285944,2180.7,2178.9,3.87445291]
[1772653626954,0.002,2180.8,2179.7,3.87445291]
[1772653627163,0.002,2180.8,2180.1,3.87445291]
[1772653627479,0.002,2180.8,2180.3,3.87445291]
[1772653628792,0.002,2180.8,2180.4,1.1465786]
[1772653629084,0.002,2180.8,2180.5,1.248]
[1772653629588,0.002,2181.0,2180.5,5.12245291]
[1772653630069,0.002,2181.0,2180.5,3.87445291]
[1772653630402,0.002,2181.0,2180.4,1.1465786]
[1772653630403,0.002,2181.0,2180.6,1.248]
[1772653630904,0.002,2180.6,2180.3,1.14660011]
[1772653631078,0.002,2181.0,2180.6,1.248]
[1772653631584,0.002,2181.0,2180.3,1.14660011]
[1772653631791,0.002,2181.0,2180.4,1.248]
[1772653631991,3.87706742,2181.0,2180.4,1.248]
[1772653632781,0.002,2181.0,2180.4,1.248]
[1772653634207,3.87706742,2181.0,2180.4,1.248]
[1772653635003,1.14631574,2180.9,2180.4,1.248]
[1772653636419,0.002,2181.0,2180.4,2.39457629]
[1772653636581,0.002,2181.3,2180.4,2.39457629]
[1772653638723,0.002,2181.3,2180.5,3.73648303]
[1772653639085,0.002,2181.3,2180.7,3.73648303]
[1772653640507,0.002,2181.6,2180.7,3.73648303]
[1772653640706,0.002,2181.9,2180.7,3.73648303]
[1772653641211,0.002,2181.9,2180.9,3.73648303]
[1772653641421,3.77554622,2181.9,2181.0,1.248]
[1772653642015,3.77354622,2181.7,2181.0,1.248]
[1772653642938,3.77554622,2181.9,2181.0,4.98448303]
[1772653643237,4.92136224,2181.9,2181.1,1.14621062]
[1772653643519,0.002,2182.2,2181.2,3.73648303]
[1772653644115,0.002,2181.6,2181.2,3.73648303]
[1772653644429,0.002,2182.2,2181.4,3.73648303]
[1772653644632,3.77354622,2182.1,2181.5,1.26224729]
[1772653644919,3.77354622,2182.1,2181.6,0.01424664]
[1772653645621,3.77354622,2181.9,2181.5,1.248]
[1772653646328,3.67504226,2181.8,2181.3,1.249]
[1772653646625,3.67504226,2181.8,2180.7,1.248]
[1772653647693,3.67504226,2181.6,2180.7,1.248]
[1772653648396,3.67504226,2181.6,2180.6,1.248]
[1772653649824,4.82104271,2181.5,2180.7,1.14642087]
[1772653650121,3.67504226,2181.4,2180.7,1.15774143]
[1772653650303,3.67504226,2181.4,2180.7,0.01132056]
[1772653650825,3.67504226,2181.4,2180.7,1.25932056]
[1772653651118,3.67504226,2181.4,2180.7,1.248]
[1772653651323,3.67504226,2181.4,2180.6,1.248]
[1772653651822,4.58400183,2181.6,2180.7,1.14642087]
[1772653651823,3.67504226,2181.6,2180.7,1.14642087]
[1772653653012,3.67504226,2181.6,2180.8,1.248]
[1772653653703,3.67504226,2181.4,2180.8,1.248]
[1772653655133,3.67504226,2181.4,2180.4,1.14655724]
[1772653655502,4.58400183,2181.6,2180.6,3.85718236]
[1772653655503,1.14598219,2181.6,2180.6,3.85718236]
[1772653655833,0.002,2181.4,2180.7,1.14642087]
[1772653656131,0.002,2181.4,2180.6,8.44286585]
[1772653656132,3.67704226,2181.4,2180.6,1.14744407]
[1772653656339,3.67704226,2181.4,2180.7,1.248]
[1772653657525,3.67704226,2181.4,2180.8,1.248]
[1772653658032,3.67504226,2181.2,2180.8,1.248]
[1772653658196,3.67504226,2181.2,2180.6,0.001]
[1772653660029,3.67504226,2181.0,2180.4,0.001]
[1772653660927,3.67504226,2180.8,2180.1,0.001]
[1772653661515,3.67504226,2180.6,2180.1,0.001]
[1772653662039,3.67504226,2180.4,2180.1,0.001]
[1772653663836,1.14652602,2180.5,2180.1,0.001]
[1772653664043,4.58597209,2180.6,2180.1,0.001]
[1772653664948,3.67504226,2180.5,2180.1,0.001]
[1772653665248,3.67504226,2180.5,2179.4,1.14707128]
[1772653665551,4.58597209,2180.6,2179.3,0.00884659]
[1772653665552,3.67504226,2180.3,2179.3,0.00884659]
[1772653666030,3.67504226,2180.1,2179.3,0.00884659]
[1772653666224,3.67504226,2180.1,2179.1,0.001]
[1772653666413,3.67504226,2180.1,2179.1,2.38125825]
[1772653666613,3.67504226,2180.1,2179.1,1.234]
[1772653666917,3.67504226,2180.1,2179.1,2.38123712]
[1772653667117,3.67504226,2180.1,2179.1,6.23741948]
[1772653668025,1.14678899,2180.0,2179.1,6.23741948]
[1772653669243,4.85136716,2180.3,2179.3,3.83222434]
[1772653669627,1.14645931,2180.7,2179.3,3.83222434]
[1772653669848,4.85110741,2180.8,2179.3,3.83222434]
[1772653670139,3.70473597,2180.8,2179.5,3.83122434]
[1772653670349,4.85110678,2180.8,2179.5,3.83122434]
[1772653671022,3.70473597,2180.7,2179.7,3.83122434]
[1772653671228,1.14637081,2180.8,2179.7,3.83122434]
[1772653671536,0.002,2181.4,2179.9,3.83122434]
[1772653671843,4.8508415,2181.3,2180.1,3.83122434]
[1772653672342,4.8508415,2181.3,2180.2,4.97790813]
[1772653672549,4.8508415,2181.3,2180.3,1.238]
[1772653672745,4.8508461,2181.3,2180.3,5.06922434]
[1772653672942,4.8508465,2181.3,2180.3,5.06922434]
[1772653673744,4.85087077,2181.3,2180.3,5.06922434]
[1772653674244,3.70473597,2181.2,2180.4,1.1465786]
[1772653674833,0.002,2181.4,2180.5,3.83122434]
[1772653675765,3.70673597,2181.4,2180.4,1.1465786]
[1772653676242,4.8508415,2181.3,2180.4,1.1465786]
[1772653677424,4.8508415,2181.3,2179.7,3.83122434]
[1772653677425,3.70473597,2181.1,2179.7,3.83122434]
[1772653677650,3.70473597,2181.0,2179.7,3.83122434]
[1772653678351,3.70473597,2181.0,2179.9,3.83122434]
[1772653678521,4.85283416,2181.4,2179.9,3.83122434]
[1772653680560,3.70473597,2181.3,2180.3,3.83122434]
[1772653680731,0.002,2181.4,2180.3,3.83122434]
[1772653681325,0.002,2181.2,2180.3,3.83122434]
[1772653682448,0.002,2181.2,2180.5,3.83122434]
[1772653683156,3.70673597,2181.2,2180.0,3.83122434]
[1772653683354,3.70673597,2181.2,2180.5,1.242]
[1772653684660,1.14621062,2181.1,2180.6,1.243]
[1772653685026,4.85094659,2181.1,2180.6,1.243]
[1772653686355,0.002,2181.2,2180.6,1.243]
[1772653686559,0.002,2181.2,2180.7,1.14642087]
[1772653686770,0.002,2181.2,2180.6,5.82869188]
[1772653686771,3.70473597,2181.1,2180.6,1.243]
[1772653686932,0.002,2181.2,2180.6,2.38946792]
[1772653687836,0.002,2181.2,2180.7,3.83122434]
[1772653688033,0.002,2181.6,2180.7,3.83122434]
[1772653688431,1.14795025,2181.6,2180.7,3.83122434]
[1772653688627,1.14795025,2181.6,2180.8,1.1463683]
[1772653688862,3.70473597,2181.5,2180.5,1.14652602]
[1772653689178,3.70473597,2181.5,2180.6,1.243]
[1772653690478,0.002,2181.6,2180.7,3.83122434]
[1772653690990,0.002,2181.6,2180.9,3.83122434]
[1772653691772,0.002,2181.9,2180.8,1.1463683]
[1772653691947,0.002,2181.9,2180.9,3.83122434]
[1772653692555,0.002,2182.2,2181.3,3.83122434]
[1772653692785,0.002,2182.2,2181.5,3.83122434]
[1772653693085,0.002,2182.4,2181.5,3.83122434]
[1772653693086,0.002,2182.4,2181.7,3.83122434]
[1772653693289,3.70673597,2182.4,2181.6,1.14594792]
[1772653693492,0.002,2181.4,2181.3,4.97732987]
[1772653693698,3.70673597,2182.4,2181.3,6.22132987]
[1772653693900,3.70673597,2182.4,2181.4,1.244]
[1772653693901,0.002,2181.6,2181.4,1.244]
[1772653694061,0.002,2181.6,2181.5,1.244]
[1772653695371,0.002,2181.9,2181.5,1.244]
[1772653695568,3.70673597,2181.9,2181.5,1.244]
[1772653697499,0.002,2181.9,2181.5,2.38998722]
[1772653699310,0.002,2181.9,2181.5,1.244]
[1772653699811,0.002,2181.9,2181.6,0.0458379]
[1772653700377,0.42701887,2181.8,2181.2,1.244]
[1772653700577,0.04783805,2181.9,2181.2,1.244]
[1772653700801,3.8284856,2181.9,2181.2,1.244]
[1772653702009,1.14584288,2181.8,2181.2,1.244]
[1772653704605,1.14584288,2181.8,2181.2,2.39014578]
[1772653704808,1.14584288,2181.8,2181.2,1.244]
[1772653704987,4.92649043,2181.8,2181.2,1.244]
[1772653706118,3.50424432,2181.7,2181.2,1.245]
[1772653706613,3.50424432,2181.5,2181.2,1.245]
[1772653707205,3.50424432,2181.5,2181.1,1.246]
[1772653707797,3.50424432,2181.5,2181.0,1.245]
[1772653708013,3.50424432,2181.5,2180.9,1.246]
[1772653708217,0.002,2181.7,2181.0,3.49232183]
[1772653708516,0.002,2181.7,2181.2,3.49232183]
[1772653709386,0.002,2181.9,2181.2,3.49232183]
[1772653710285,0.002,2181.9,2181.3,1.245]
[1772653710485,0.002,2181.9,2180.9,0.001]
[1772653710486,3.50424432,2181.8,2180.9,0.001]
[1772653710685,3.97763475,2181.7,2180.9,1.14730914]
[1772653710907,3.55008237,2181.7,2180.9,0.001]
[1772653711109,3.50424432,2181.5,2180.9,0.001]
[1772653712114,6.66841196,2181.4,2180.9,0.001]
[1772653712285,3.50424432,2181.4,2180.9,1.14730493]
[1772653712488,4.65033915,2181.4,2180.9,1.14731232]
[1772653712917,4.65033915,2181.4,2180.9,0.001]
[1772653713090,4.65029991,2181.4,2180.9,0.001]
[1772653713420,4.69601867,2181.7,2180.9,0.001]
[1772653713717,4.69601235,2181.7,2180.9,0.001]
[1772653713905,4.69598297,2181.7,2180.9,0.001]
[1772653716493,3.50424432,2181.6,2180.9,0.001]
[1772653716904,1.19173865,2181.7,2180.9,0.001]
[1772653716905,3.55008237,2181.5,2180.9,0.001]
[1772653717108,4.65029731,2181.4,2180.9,3.811]
[1772653717701,4.65029731,2181.4,2180.9,4.95731519]
[1772653717900,4.65029731,2181.4,2180.9,3.811]
[1772653718096,4.65029731,2181.4,2180.9,4.95730784]
[1772653718315,1.1918482,2181.5,2180.9,4.95730784]
[1772653719402,1.1918482,2181.5,2181.1,0.001]
[1772653719619,1.1938482,2181.5,2181.1,0.001]
[1772653720005,4.69809252,2181.5,2181.1,0.001]
[1772653720494,0.002,2181.5,2181.1,0.001]
[1772653720694,1.14800169,2181.5,2181.1,0.001]
[1772653720915,4.69808406,2181.5,2181.1,0.001]
[1772653721120,3.50424432,2181.4,2181.1,0.001]
[1772653721432,1.14610553,2181.3,2181.1,0.001]
[1772653722504,3.50424432,2181.2,2180.6,0.001]
[1772653723196,3.50424432,2181.0,2180.3,0.001]
[1772653723396,3.50424432,2180.8,2180.3,0.001]
[1772653723611,3.50424432,2180.6,2180.3,0.001]
[1772653725123,3.50424432,2180.6,2179.8,1.146867]
[1772653725124,3.50424432,2180.4,2179.7,1.247]
[1772653725334,4.65084294,2180.4,2179.8,4.5875088]
[1772653725628,6.77130566,2181.0,2180.0,3.49332183]
[1772653725629,1.14634359,2180.9,2180.0,3.49332183]
[1772653725838,4.65058791,2180.9,2180.0,3.49332183]
[1772653726034,3.16186801,2180.8,2180.0,0.001]
[1772653726214,3.50424432,2180.6,2180.0,0.001]
[1772653727930,1.14652602,2180.5,2180.0,0.001]
[1772653731310,4.65074911,2180.6,2180.0,0.001]
[1772653731516,3.86828434,2180.9,2180.0,0.001]
[1772653731704,3.91412239,2180.8,2180.0,0.001]
[1772653731905,5.01470521,2180.7,2180.0,0.001]
[1772653732302,5.01441402,2181.3,2180.2,2.23035053]
[1772653732507,5.01441402,2181.3,2180.4,3.66565906]
[1772653732830,5.01440124,2181.3,2180.5,0.04584435]
[1772653733031,5.01440124,2181.3,2180.4,3.66565906]
[1772653733606,0.002,2180.6,2180.4,3.66565906]
[1772653733806,0.002,2180.8,2180.4,3.66565906]
[1772653734105,0.002,2180.8,2180.5,4.81218508]
[1772653735337,0.002,2181.1,2180.6,3.66565906]
[1772653735635,0.002,2181.5,2180.6,3.66565906]
[1772653736006,0.002,2181.5,2180.7,4.81207993]
[1772653737218,3.86828434,2181.4,2180.7,1.14642087]
[1772653737938,1.14610553,2181.3,2180.5,2.39549406]
[1772653738230,3.86828434,2181.2,2180.4,1.249]
[1772653738635,3.86828434,2181.2,2180.3,4.58644225]
[1772653738825,3.86828434,2181.2,2180.4,1.249]
[1772653739026,3.86828434,2181.2,2180.2,0.001]
[1772653739270,3.86828434,2181.0,2180.2,0.001]
[1772653740012,3.86828434,2180.8,2180.2,0.001]
[1772653740408,5.01453809,2181.1,2180.2,0.001]
[1772653740915,1.14610553,2181.3,2180.2,3.66665906]
[1772653742022,3.86828434,2181.3,2180.3,1.14663119]
[1772653743414,3.86828434,2181.3,2180.3,4.81229025]
[1772653743737,1.1480027,2181.5,2180.4,3.66565906]
[1772653743942,1.1480027,2181.5,2180.6,3.66565906]
[1772653744137,0.002,2181.5,2180.7,1.14642087]
[1772653745238,3.86828434,2181.4,2180.7,2.39642087]
[1772653745742,3.86828434,2181.4,2180.7,1.25]
[1772653745944,0.002,2181.1,2180.7,1.25]
[1772653746243,0.002,2181.1,2180.6,1.25]
[1772653746418,0.002,2181.1,2180.7,0.04585683]
[1772653747038,3.87028434,2181.1,2180.2,1.14763691]
[1772653748327,3.86828434,2180.9,2180.2,1.251]
[1772653751033,3.86828434,2180.7,2180.2,0.001]
[1772653751535,1.1463683,2180.8,2180.0,0.001]
[1772653751536,3.86828434,2180.5,2180.0,0.001]
[1772653753417,1.1465786,2180.4,2180.0,0.001]
[1772653754843,3.86828434,2180.3,2180.0,0.001]
[1772653755046,3.86828434,2180.3,2179.7,1.14794533]
[1772653755647,3.86828434,2180.6,2179.7,1.14794533]
[1772653755841,3.16237241,2180.5,2179.7,1.14794533]
[1772653756043,3.86828434,2180.6,2179.7,1.14794533]
[1772653756221,0.42737767,2180.5,2179.7,1.14794533]
[1772653756427,3.86828434,2180.6,2179.7,1.14794533]
[1772653756615,7.03037459,2180.5,2179.7,0.001]
[1772653756945,5.01465264,2180.8,2179.7,3.66665906]
[1772653757149,5.01465264,2180.8,2179.8,3.66565906]
[1772653757651,0.42732776,2180.7,2179.9,1.14684159]
[1772653757944,3.86828434,2180.7,2180.0,1.251]
[1772653758318,3.86828434,2180.7,2180.2,0.001]
[1772653759743,1.14647344,2180.6,2180.2,0.001]
[1772653760422,1.14646232,2180.7,2180.2,0.001]
[1772653760618,4.80195903,2180.9,2180.2,0.001]
[1772653760841,3.1620886,2180.8,2180.2,0.001]
[1772653761043,3.65561385,2180.8,2180.2,0.001]
[1772653761788,3.65561385,2180.6,2180.2,0.001]
[1772653762652,3.65561385,2180.9,2180.2,0.001]
[1772653762856,3.16211535,2180.8,2180.2,0.001]
[1772653763028,4.80193793,2180.9,2180.2,0.001]
[1772653763226,4.08297486,2180.8,2180.2,0.001]
[1772653763457,3.65561385,2180.8,2180.2,0.001]
[1772653763954,4.8019895,2180.8,2180.2,0.001]
[1772653764343,4.08303244,2180.7,2180.2,0.001]
[1772653764533,3.65561385,2180.7,2180.2,0.001]
[1772653766137,4.80203526,2180.7,2180.2,0.001]
[1772653766461,1.14641669,2180.8,2180.2,0.001]
[1772653766673,3.59973897,2181.0,2180.2,3.53215756]
[1772653766964,4.74600777,2181.0,2180.2,3.53215756]
[1772653767362,3.59973897,2181.0,2180.2,3.53215756]
[1772653767843,4.7460037,2181.0,2180.2,3.53215756]
[1772653768166,0.002,2181.1,2180.4,3.53115756]
[1772653769866,0.002,2181.1,2180.5,1.252]
[1772653770069,0.002,2181.1,2180.6,1.14647344]
[1772653770464,0.002,2181.1,2180.7,1.253]
[1772653770775,0.002,2180.9,2180.6,1.14647344]
[1772653770961,0.002,2180.9,2180.6,1.253]
[1772653771167,0.002,2181.1,2180.6,4.78415756]
[1772653771551,0.002,2181.1,2180.7,3.53115756]